Cogmind - Beta 15 @@@ ROGUE MODE // 2025.06.04 @ 03:40:24 Player: Tenderz Result: Destroyed by H-66 Slayer with Gauss Rifle Performance ------------- Evolutions (5) 2500 Regions Visited (6) 1200 Robots Destroyed (63) 315 Value Destroyed (1666) 1666 Prototype IDs (18) 360 Alien Tech Used (0) 0 Bonus (1266) 1266 TOTAL SCORE: 7307 Bonus ------- Follower Combat Kills 868 Registered with UFD 300 Met Optimus in HQ 500 Friendly Fire -402 Cogmind --------- Core Integrity 0/1000 Matter 81/300 Energy 99/100 System Corruption 24% Temperature Cool (0) Movement Core (50) Location -5/Factory Parts ------- > --- POWER (2) -------- (None) > --- PROPULSION (6) --- (None) > --- UTILITY (7) ------ Melee Analysis Suite > --- WEAPON (2) ------- (None) > --- INVENTORY (5) ---- High-capacity Storage Unit Long-range Tractor Beam Heavy Phase Cannon Smartbomb Launcher Peak State ------------ > --- POWER ------------ Light Neutrino Core Micro Fission Core > --- PROPULSION ------- Xenon Bombardment Thruster Xenon Bombardment Thruster Cooled VTOL Module Makeshift Flight Unit Nuclear Pulse Array > --- UTILITY ---------- Medium Storage Unit Improved Signal Interpreter IFF Parser Surveybot 24 Chip Improved Core Shielding Makeshift Hacking Suite System Shield > --- WEAPON ----------- Lance Lance > --- INVENTORY -------- Fusion Compressor Advanced Treads Medium Treads Large Storage Unit Phase Shifter Improved Propulsion Shielding Improved Light Armor Plating Reflective Plating Enhanced Gauss Cannon Mini Grenade Launcher [Rating: 86] Favorites ----------- Power Improved Deuterium Engine Engine Improved Deuterium Engine Power Core Light Nuclear Core Reactor MA-1KR's Cyclogen Propulsion Light Treads Treads Light Treads Wheel Armored Huge Wheel Hover Unit Antigrav System Flight Unit VTOL Module Utility Structural Scanner Device Structural Scanner Storage Small Storage Unit Processor Surveybot 24 Chip Hackware Makeshift Hacking Suite Protection Improved Light Armor Plating Weapon Powered Hammer Energy Gun Small Laser Ballistic Gun Gauss Rifle Ballistic Cannon Light Cannon Launcher Grenade Launcher Impact Weapon Powered Hammer Slashing Weapon Mining Claw Piercing Weapon Spear Build | -11 -10 -10 -10 -7 -7 -5 ------- Run | Yrd Mat Min Sub Rec Scr Fac Slots Evolved 10 | . . . . . . 10 Power 1 | . . . . . . 1 Propulsion 4 | . . . . . . 4 Utility 5 | . . . . . . 5 Weapon . | . . . . . . . Parts Attached 83 | 9 6 . 7 11 8 42 Power 12 | 1 2 . 1 1 3 4 Engine 6 | 1 1 . 1 1 2 . Core 5 | . 1 . . . . 4 Reactor 1 | . . . . . 1 . Propulsion 24 | 4 . . 2 3 . 15 Treads 6 | 2 . . . 1 . 3 Leg . | . . . . . . . Wheel 6 | 2 . . 2 2 . . Hover 1 | . . . . . . 1 Flight 11 | . . . . . . 11 Utility 26 | 2 1 . 1 3 2 17 Device 11 | 1 1 . 1 . . 8 Storage 7 | 1 . . . 2 2 2 Processor 3 | . . . . . . 3 Hackware 2 | . . . . . . 2 Protection 3 | . . . . 1 . 2 Artifact . | . . . . . . . Weapon 21 | 2 3 . 3 4 3 6 Energy Gun 6 | 2 1 . . 1 1 1 Energy Cannon . | . . . . . . . Ballistic Gun 5 | . . . 1 1 1 2 Ballistic Cannon 2 | . 1 . . . . 1 Launcher 2 | . . . 1 . 1 . Special Weapon . | . . . . . . . Impact Weapon 2 | . . . 1 1 . . Slashing Weapon 1 | . 1 . . . . . Piercing Weapon 3 | . . . . 1 . 2 Special Melee Weapon . | . . . . . . . Unidentified Prototypes 5 | . . . . . 1 4 Parts Lost 42 | . 2 . 2 3 . 35 Power 6 | . 1 . . 1 . 4 Propulsion 15 | . . . . 1 . 14 Utility 14 | . . . 1 . . 13 Weapon 7 | . 1 . 1 1 . 4 Highest Loss Streak 16 | . 2 . 2 2 . 16 To Critical Strikes . | . . . . . . . Average Backups 10 | 4 7 8 7 11 16 6 Power 1 | . 1 1 1 2 1 . Propulsion 2 | 2 3 3 2 2 4 . Utility 3 | . . 1 1 3 5 2 Weapon 3 | 1 2 3 2 3 4 2 Tool/Special . | . . . . . . . Unused Backups 30 | . . . 4 3 10 13 Power 4 | . . . . . 3 1 Propulsion 8 | . . . 3 2 2 1 Utility 11 | . . . . 1 3 7 Weapon 7 | . . . 1 . 2 4 Tool/Special . | . . . . . . . Average Slot Usage (%) 84 | . 93 100 99 86 84 64 Engine 10 | . 5 14 14 14 13 2 Core 2 | . 7 . . . . 4 Treads 9 | . 28 28 25 . . 2 Wheel 7 | . . . 2 14 14 . Flight 2 | . . . . . . 15 Device 10 | . 8 14 13 13 10 7 Storage 11 | . 14 14 14 14 14 1 Processor 1 | . . . . . . 8 Hackware 1 | . . . . . . 5 Protection 1 | . . . . . 3 2 Energy Gun 4 | . 22 14 . . . . Ballistic Cannon 2 | . 4 14 14 . . . Impact Weapon 7 | . . . 3 15 13 1 Piercing Weapon 6 | . . . . 12 12 3 Peak Build Rating 86 | 7 9 7 12 25 35 86 Average Rating 24 | 4 7 7 8 23 26 52 On Entrance 12 | . 7 7 7 12 25 29 Naked Turns . | . . . . . . . Heaviest Build 68 | 13 16 15 19 37 68 62 Greatest Support 40 | 40 40 40 40 40 28 38 Greatest Overweight (x) 11 | . . . 1 1 2 11 Average Overweight (x) . | . . . . . 1 . Largest Inventory Capacity 20 | 8 8 8 8 15 20 20 Average Capacity 11 | 7 8 8 8 11 17 7 Most Carried 20 | 7 8 8 8 15 20 20 Average Carried 10 | 4 7 8 7 11 16 6 Final Capacity 20 | 8 8 8 8 15 20 5 Final Carried 20 | 5 8 8 7 15 20 5 Class Distribution -------------------- 45% | Commander-Mutant 38% | Mutant 5% | Hacker-Sprinter 4% | Scavenger-Sprinter Dominant Class ---------------- Mutant | -10/Materials Mutant | -10/Mines Mutant | -10/Subcaves Commander-Mutant | -7/Recycling Commander-Mutant | -7/Scraptown Hacker-Sprinter | -5/Factory Resources | -11 -10 -10 -10 -7 -7 -5 ----------- Run | Yrd Mat Min Sub Rec Scr Fac Matter Collected 1724 | 237 255 . 162 418 281 371 Remotely . | . . . . . . . Salvage Created 2878 | 21 402 . 134 1437 553 331 Parts 130 | 3 26 . 14 37 28 22 Haulers Intercepted . | . . . . . . . Recyclers Shooed 7 | . . . . 7 . . Parts Field Recycled . | . . . . . . . Retrieved Matter . | . . . . . . . Parts Self-Destructed 9 | . . . 7 . 2 . Prevented . | . . . . . . . Kills | -11 -10 -10 -10 -7 -7 -5 ------- Run | Yrd Mat Min Sub Rec Scr Fac Combat Hostiles Destroyed 37 | . 12 . 8 3 6 8 Melee 7 | . . . . 3 . 4 Guns 12 | . 8 . 2 . 2 . Cannons 7 | . 3 . . . . 4 AOE 11 | . 1 . 6 . 4 . Classes Destroyed 17 | 2 4 . 2 3 5 1 Worker 1 | 1 . . . . . . Builder 2 | . . . . 2 . . Tunneler 2 | 1 . . . . . 1 Recycler 13 | . . . . 13 . . Operator 2 | . 1 . . . . 1 Turret 1 | . . . 1 . . . Watcher 2 | . 1 . . . . 1 Swarmer 11 | . 3 . 4 . . 4 Grunt 9 | . 9 . . . . . Sentry 3 | . . . . 3 . . Hunter 1 | . . . . . 1 . Programmer 4 | . . . . . . 4 Subdweller 4 | . . . 4 . . . Federalist 1 | . . . . . 1 . Explorer 1 | . . . . . 1 . Guru 1 | . . . . . 1 . Scrapper 5 | . . . . . 5 . Best Kill Streak 4 | 1 4 . 4 3 4 4 Combat Bots Only 4 | . 3 . 4 1 4 4 Max Kills in Single Turn 3 | 1 1 . 3 1 2 1 Gunslinging . | . . . . . . . Exploded 3 | . 1 . 3 . 1 . Melee 1 | . . . . 1 . 1 Uniques/NPCs Destroyed . | . . . . . . . Combat | -11 -10 -10 -10 -7 -7 -5 -------- Run | Yrd Mat Min Sub Rec Scr Fac Hostile Shots Fired 414 | . 49 1 49 81 15 219 Missed 151 | . 12 1 18 33 3 84 Hits 263 | . 37 . 31 48 12 135 Projectile 263 | . 37 . 31 48 12 135 AOE 3 | . . . . . . 3 Critical Strikes 9 | . . . 2 . . 7 Actively Blocked 3 | . . . . . . 3 Part Disruptions 2 | . . . . . . 2 Damage Taken 4311 | . 495 . 325 294 141 3056 Core 1217 | . 74 . 79 35 22 1007 Absorbed by Shields 219 | . . . . 86 133 . Redirected to Shielding 103 | . . . . . . 103 Core Remaining (%) 58 | 100 . . . . 16 . Volleys Fired 120 | 4 38 . 32 5 23 18 Largest 2 | 2 2 . 1 1 2 1 Hottest 80 | 80 80 . 30 60 78 60 Shots Fired 161 | 8 68 . 32 5 29 19 Gun 90 | 8 46 . 8 5 16 7 Cannon 34 | . 22 . . . . 12 Launcher 37 | . . . 24 . 13 . Special . | . . . . . . . Kinetic 51 | . 22 . 8 . 6 15 Thermal 37 | 8 24 . . 5 . . Explosive 37 | . . . 24 . 13 . Electromagnetic 36 | . 22 . . . 10 4 Robot Hit Streak 10 | 6 10 . 6 4 4 6 Robot Miss Streak 2 | 1 2 . 1 1 1 1 Penetration Max 1 | . . . . . 1 . Secondary Targets 2 | . 1 . . . 1 . Max Gunslinging Chain 1 | . 1 . . . 1 . Shots Hit Robots 148 | 6 43 . 9 45 10 35 Core Hits 93 | 1 23 . 19 16 19 15 Critical Kills 2 | . . . . 2 . . Critical Parts Destroyed 2 | . . . . 1 . 1 Critical Strikes 10 | . 2 . . 7 . 1 Destroy 1 | . . . . . . 1 Blast 2 | . 2 . . . . . Smash 3 | . . . . 3 . . Impale 4 | . . . . 4 . . Melee Attacks 218 | . 5 . 10 68 1 134 Impact 82 | . . . 8 36 1 37 Slashing 7 | . 5 . 2 . . . Piercing 129 | . . . . 32 . 97 Sneak Attacks 23 | . . . . 21 . 2 Combat Hostiles 4 | . . . . 4 . . Follow-up Attacks 5 | . . . . 3 . 2 Damage Inflicted 5915 | 66 718 . 522 2340 925 1344 Guns 1048 | 66 394 . 148 83 240 117 Cannons 564 | . 179 . . . . 385 Explosions 1204 | . 145 . 374 . 685 . Melee 3085 | . . . . 2257 . 828 Ramming 14 | . . . . . . 14 Kinetic 920 | . 179 . 148 . 149 444 Thermal 473 | 66 324 . . 83 . . Explosive 1059 | . . . 374 . 685 . Electromagnetic 364 | . 215 . . . 91 58 Impact 934 | . . . . 934 . . Slashing . | . . . . . . . Piercing 2151 | . . . . 1323 . 828 Highest Corruption 24 | . 2 2 2 3 . 24 Average Corruption 3 | . 1 2 2 2 . 13 Corruption Purged . | . . . . . . . Corruption Blocked . | . . . . . . . Effects 87 | . 19 4 14 23 . 27 Message Errors 23 | . 4 1 2 8 . 8 Matter Fused 21 | . 5 2 3 6 . 5 Heat Flow Errors 6 | . 1 . 3 1 . 1 Energy Discharges 16 | . 2 . 3 6 . 5 Parts Rejected 1 | . 1 . . . . . Parts Fused 2 | . 1 . . . . 1 Data Loss (minor) 9 | . 2 . 2 2 . 3 Data Loss (major) 2 | . 1 . 1 . . . Misfires 2 | . 1 . . . . 1 Alerts 2 | . 1 1 . . . . Misdirections 3 | . . . . . . 3 Overload Shots . | . . . . . . . Overflow Damage 684 | . 5 . . 581 . 98 Projectiles 40 | . . . . . . 40 Explosions 5 | . 5 . . . . . Melee 639 | . . . . 581 . 58 Knockbacks 10 | . 7 . . 1 . 2 Impact 1 | . . . . 1 . . Kinetic 8 | . 6 . . . . 2 Secondary 1 | . 1 . . . . . Self-Inflicted Damage 112 | . 61 . 23 . 21 7 Shots 5 | . 2 . 2 . 1 . Rammed 1 | . . . . . . 1 Targets Rammed 2 | 1 . . . . . 1 Kicked . | . . . . . . . Crushed 1 | 1 . . . . . . Highest Temperature 201 | 36 147 . 201 179 106 158 Average Temperature 35 | 20 48 . 93 76 39 9 Received Heat Transfer 507 | . 183 . 12 81 42 189 Siege Activations . | . . . . . . . Martial Activations . | . . . . . . . Shielding Activations . | . . . . . . . Robots Disrupted . | . . . . . . . Combat Hostiles . | . . . . . . . Robots Corrupted 3 | . . . . 3 . . Combat Hostiles . | . . . . . . . Parts Fried 7 | . . . . 7 . . Impact Corruptions 7 | . . . . 7 . . Robots Melted . | . . . . . . . Combat Hostiles . | . . . . . . . Parts Melted 5 | . . . . . 5 . Heat Transferred 900 | 150 650 . . 100 . . Parts Sabotaged . | . . . . . . . Parts Stolen . | . . . . . . . Parts Stripped . | . . . . . . . Power Chain Reactions 2 | . 2 . . . . . Alert | -11 -10 -10 -10 -7 -7 -5 ------- Run | Yrd Mat Min Sub Rec Scr Fac Maximum Alert Level 1 | . . . . . . 1 Low Security (%) 95 | 100 100 100 . 100 . 84 Level 1 4 | . . . . . . 15 Level 2 . | . . . . . . . Level 3 . | . . . . . . . Level 4 . | . . . . . . . Level 5 . | . . . . . . . High Security . | . . . . . . . Max Security . | . . . . . . . Peak Influence 393 | 5 120 23 . 81 . 393 Initial 23 | . 3 23 . . . . Average 40 | . 35 2 . 16 . 82 Influence Increases 1913 | 10 358 . 130 479 7 929 Destroy 0b10 Robot/C 680 | . 240 . 100 120 . 220 Destroy 0b10 Robot/NC 145 | 10 10 . . 105 5 15 Destroy Leader 94 | . 52 . . . . 42 Allied During Kill 62 | . . . . 50 2 10 Successful Hack 114 | . 16 . . 33 . 65 Select Force Hacks 150 | . . . . 150 . . Disable Machine 135 | . 30 . . 15 . 90 Destroy Structure 218 | . 10 . . 6 . 202 Partial Spotted 30 | . . . . . . 30 Lose Combat Pursuer 285 | . . . 30 . . 255 Influence Decreases 1641 | 5 303 60 130 479 7 657 Entered New Map 39 | . 2 37 . . . . Time Decay 1250 | 5 281 23 130 443 6 362 Lost Part 260 | . 20 . . 16 . 224 Lost Ally 92 | . . . . 20 1 71 Squads Dispatched 14 | . 3 . . . . 11 Investigation 5 | . 2 . . . . 3 Extermination 3 | . . . . . . 3 Reinforcement 3 | . 1 . . . . 2 Assault . | . . . . . . . Garrison 3 | . . . . . . 3 Intercept . | . . . . . . . Searches Triggered . | . . . . . . . Construction Impeded . | . . . . . . . Haulers Reinforced . | . . . . . . . Active Scanning Responses . | . . . . . . . Cargo Convoy Interrupts 1 | . . . . . . 1 Stealth | -11 -10 -10 -10 -7 -7 -5 --------- Run | Yrd Mat Min Sub Rec Scr Fac Distress Signals 6 | . 2 . . 1 . 3 Communications Jammed . | . . . . . . . Distress Signals . | . . . . . . . Times Spotted 123 | . 21 3 14 5 32 48 Peak Tracking Total 13 | . 5 3 3 1 7 13 Tactical Retreats 8 | . . . 1 . . 7 Traps | -11 -10 -10 -10 -7 -7 -5 ------- Run | Yrd Mat Min Sub Rec Scr Fac Traps Triggered 9 | . 3 . . . . 6 Indirectly . | . . . . . . . Trap Hack Attempts . | . . . . . . . Triggered . | . . . . . . . Disarmed . | . . . . . . . Reprogrammed . | . . . . . . . Reused . | . . . . . . . Traps Extracted . | . . . . . . . Installed . | . . . . . . . Triggered . | . . . . . . . Machines | -11 -10 -10 -10 -7 -7 -5 ---------- Run | Yrd Mat Min Sub Rec Scr Fac Machines Disabled 16 | . 2 . 2 1 5 6 Max in Single Turn 1 | . 1 . 1 1 1 1 Garrison Access 2 | . . . . . . 2 Machines Repaired . | . . . . . . . Machines Dismantled . | . . . . . . . Machines Sabotaged . | . . . . . . . Overloaded Fab Kills . | . . . . . . . Hacking | -11 -10 -10 -10 -7 -7 -5 --------- Run | Yrd Mat Min Sub Rec Scr Fac Machines Accessed 40 | . 6 . . 12 3 19 Terminals 19 | . 5 . . 6 . 8 Fabricators 2 | . . . . . . 2 Repair Stations 1 | . . . . . . 1 Recycling Units 11 | . 1 . . 6 . 4 Scanalyzers 1 | . . . . . . 1 Garrison Access 3 | . . . . . . 3 Total Hacks 117 | . 22 . . 35 17 43 Successful 64 | . 11 . . 17 17 19 Failed 52 | . 10 . . 18 . 24 Catastrophic 15 | . 1 . . 4 . 10 Database Lockouts 1 | . 1 . . . . . Manual 39 | . 6 . . 14 . 19 Terminals 55 | . 19 . . 16 . 20 Fabricators 3 | . . . . . . 3 Repair Stations 2 | . . . . . . 2 Recycling Units 31 | . 3 . . 19 . 9 Scanalyzers 4 | . . . . . . 4 Garrison Access 5 | . . . . . . 5 Terminal Hacks 33 | . 9 . . 2 17 5 Record 18 | . 1 . . . 17 . Part Schematic 1 | . . . . 1 . . Robot Analysis 1 | . 1 . . . . . Prototype ID Bank 4 | . 2 . . . . 2 Level Access Points 1 | . 1 . . . . . Emergency Access Points 1 | . 1 . . . . . Recycling Unit Index 1 | . . . . 1 . . Locate Traps 1 | . . . . . . 1 Dispatch Records 1 | . . . . . . 1 Zone Layout 4 | . 3 . . . . 1 Fabricator Hacks 2 | . . . . . . 2 Load Schematic 1 | . . . . . . 1 Build 1 | . . . . . . 1 Repair Station Hacks 1 | . . . . . . 1 Scan Component 1 | . . . . . . 1 Recycling Unit Hacks 7 | . . . . 5 . 2 Report Inventory 1 | . . . . 1 . . Retrieve Matter 2 | . . . . 1 . 1 Retrieve Components 4 | . . . . 3 . 1 Scanalyzer 2 | . . . . . . 2 Insert Component 1 | . . . . . . 1 Analyze 1 | . . . . . . 1 Garrison Access Hacks 2 | . . . . . . 2 Seal Access 2 | . . . . . . 2 Unauthorized Hacks 17 | . 2 . . 10 . 5 Terminals 4 | . 1 . . 2 . 1 Track 1 | . . . . . . 1 Botnet 3 | . 1 . . 2 . . Fabricators 1 | . . . . . . 1 Liberate 1 | . . . . . . 1 Repair Stations . | . . . . . . . Recycling Units 12 | . 1 . . 8 . 3 Recyclers 3 | . 1 . . 1 . 1 Mask 4 | . . . . 2 . 2 Tunnel 5 | . . . . 5 . . Scanalyzers . | . . . . . . . Garrison Access . | . . . . . . . Data Cores Recovered . | . . . . . . . Used . | . . . . . . . Hacking Detections 33 | . 6 . . 11 . 16 Full Trace Events 8 | . 2 . . 3 . 3 Feedback Events 2 | . 1 . . 1 . . Corruption 2 | . 1 . . 1 . . Feedback Blocked . | . . . . . . . Robot Schematics Acquired . | . . . . . . . Robots Built . | . . . . . . . Authchips . | . . . . . . . Time . | . . . . . . . Total Robot Build Rating . | . . . . . . . Part Schematics Acquired 2 | . . . . 1 . 1 Parts Built 1 | . . . . . . 1 Authchips . | . . . . . . . Time 25 | . . . . . . 25 Total Part Build Rating 1 | . . . . . . 1 Parts Repaired . | . . . . . . . Time . | . . . . . . . Parts Recycled . | . . . . . . . Recycled Matter . | . . . . . . . Retrieved Matter . | . . . . . . . Retrieved Components 14 | . . . . 14 . . Parts Scanalyzed 1 | . . . . . . 1 Part Schematics Acquired 1 | . . . . . . 1 Parts Damaged . | . . . . . . . Bothacking | -11 -10 -10 -10 -7 -7 -5 ------------ Run | Yrd Mat Min Sub Rec Scr Fac Used RIF Installer . | . . . . . . . Robots Hacked . | . . . . . . . Non-combat . | . . . . . . . Combat . | . . . . . . . Robot Hacks Applied . | . . . . . . . Relay Couplers Released . | . . . . . . . Fabnet Peak Effective % . | . . . . . . . Robots Rewired 11 | . . . . 11 . . Allies Hacked . | . . . . . . . Hacks Repelled . | . . . . . . . Allies | -11 -10 -10 -10 -7 -7 -5 -------- Run | Yrd Mat Min Sub Rec Scr Fac Total Allies 14 | . . . . 11 . 3 Largest Group 9 | . . . . 9 9 5 Highest-Rated Group 223 | . . . . 223 223 159 Highest-Rated Ally 40 | . . . . 40 40 40 Total Orders 1 | . . . . . . 1 STAY 1 | . . . . . . 1 Ally Attacks 136 | . . . . 14 87 35 Total Damage 2718 | . . . . 328 1895 495 Kills 30 | . . . . 4 23 3 Allies Corrupted 1 | . . . . 1 . . Allies Melted 6 | . . . . . 5 1 Intel | -11 -10 -10 -10 -7 -7 -5 ------- Run | Yrd Mat Min Sub Rec Scr Fac Active Infowar (turns) 6092 | 33 741 259 887 1681 1454 1037 Optics 117 | . . . 75 42 . . Sensors 577 | . . . . . . 577 IFF 431 | . . . . . . 431 Terrain 269 | . . . . . . 269 Structural 3752 | . 483 176 . 1639 1454 . Seismic 1186 | 33 258 83 812 . . . Robot Analysis Total 1 | . 1 . . . . . Derelict Logs Recovered 5 | . . . 2 . 3 . Drone Launches . | . . . . . . . Drone Recoveries . | . . . . . . . Exploration | -11 -10 -10 -10 -7 -7 -5 ------------- Run | Yrd Mat Min Sub Rec Scr Fac Turns Passed 7551 | 105 1178 259 926 1686 1976 1421 Spaces Moved 5851 | 59 582 160 516 1256 1343 1935 Core 152 | 11 . . . . . 141 Treads 1211 | 29 582 160 431 8 . 1 Legs . | . . . . . . . Wheels 2784 | 19 . . 85 1248 1343 89 Hover 99 | . . . . . . 99 Flight 1605 | . . . . . . 1605 Fastest Speed 23 | 50 160 160 95 95 115 23 Average Speed 97 | 120 160 160 149 108 115 38 Slowest Speed 600 | 160 160 160 160 240 130 600 Overloaded Moves . | . . . . . . . Propulsion Burnouts . | . . . . . . . Robots Hopped 3 | . . . . . . 3 Potential Cave-ins . | . . . . . . . Cave-ins Triggered 1 | . . . . . . 1 Exploration Rate (%) 55 | 6 85 34 37 97 82 50 Regions Visited 6 Branch Regions 4 Pre-discovered Areas 8 | . . . 2 5 1 . Known Exits Taken . | . . . . . . . Unknown Exits Taken 6 | 1 1 1 1 1 1 . Scrap Searched 4 | . . . . . 4 . Spaces Dug 103 | . 1 . 1 6 . 95 Terrain Destroyed 246 | . 8 . 51 6 80 101 Melee 102 | . 1 . 1 6 . 94 Projectile 8 | . . . . . 1 7 AOE 136 | . 7 . 50 . 79 . Terrain Rammed . | . . . . . . . Walls Destroyed . | . . . . . . . Machines Disabled . | . . . . . . . Actions | -11 -10 -10 -10 -7 -7 -5 --------- Run | Yrd Mat Min Sub Rec Scr Fac Total 7228 | 82 751 163 626 1488 1743 2375 Wait 630 | 3 106 3 41 16 317 144 Move 5840 | 59 581 159 515 1255 1342 1929 Hop 3 | . . . . . . 3 Pick Up 81 | 6 7 . 7 15 24 22 Fast Attach 50 | 6 2 . 3 5 2 32 Attach 32 | 2 2 . 3 . 1 24 Detach 12 | 1 1 . . . . 10 Swap 39 | 1 5 1 6 10 9 7 Drop 72 | . 4 . 9 12 24 23 Fire 120 | 4 38 . 32 5 23 18 Melee 201 | . 5 . 10 55 1 130 Ram 1 | . . . . . . 1 Kick . | . . . . . . . Crush . | . . . . . . . Escape Stasis 32 | . . . . . . 32 Rewire 115 | . . . . 115 . . Trap . | . . . . . . . Miscellaneous . | . . . . . . . Route ------- -11/Scrapyard -10/Materials (discovered 5 exits: *Mat x3 / [*Min] / [Sub]) -10/Mines -10/Subcaves -7/Recycling (discovered 2 exits: *Fac / *Scr) -7/Scraptown (discovered 2 exits: *Fac x2) -5/Factory (discovered 3 exits: *Fac x3) History --------- Turn | Location | Event 10 | -11/Scrapyard | Discovered new exit (range 15) 106 | -11/Scrapyard | Entered Materials 119 | -10/Materials | Central database locked down 282 | -10/Materials | Identified exit to Materials 304 | -10/Materials | Build established: Mutant 496 | -10/Materials | Discovered new exit (range 7) 1044 | -10/Materials | Discovered new exit (range 10) 1284 | -10/Materials | Entered Mines 1296 | -10/Mines | Met a Derelict bent on vengeance 1428 | -10/Mines | Assembled infested the area 1433 | -10/Mines | Assisted by a Guerilla fighting off Assembled 1529 | -10/Mines | Discovered new exit (range 10) 1543 | -10/Mines | Entered Subcaves 1556 | -10/Subcaves | Learned location of Zion (-7) 1832 | -10/Subcaves | A swath of the cavern ceiling suddenly collapsed 2074 | -10/Subcaves | Discovered new exit (range 15) 2347 | -10/Subcaves | Ambushed by Subdweller buried in earth 2358 | -10/Subcaves | Core integrity fell below 50% 2469 | -10/Subcaves | Entered Recycling 2916 | -7/Recycling | Discovered new exit (range 10) 2963 | -7/Recycling | Scanned before Scraplab entrance 2972 | -7/Recycling | Build established: Commander-Mutant 4111 | -7/Recycling | Discovered new exit (range 11) 4115 | -7/Recycling | Entered Scraplab 4155 | -7/Recycling | Entered Scraptown 4155 | -7/Scraptown | Accompanied by 9 allies 4155 | -7/Scraptown | System corruption cleaned by C-Scrubber 4306 | -7/Scraptown | Heard Great Nut preacher, LISTEN AND RECITE! 4408 | -7/Scraptown | Scanned Subdweller tech in exchange for log data 4411 | -7/Scraptown | Learned location of Extension (-6) 4412 | -7/Scraptown | Learned location of 1 exit from Factory 4413 | -7/Scraptown | Learned location of 2 exits from Proximity Caves 4450 | -7/Scraptown | Discovered new exit (range 3) 4878 | -7/Scraptown | Visited UFD Registry 4878 | -7/Scraptown | Registered with UFD as "Wavetorch" 4921 | -7/Scraptown | Visited Sword Containment 4983 | -7/Scraptown | Visited Curators Association 5033 | -7/Scraptown | Visited Abandonware Association 5050 | -7/Scraptown | Learned abandonware demo "TRNCOAT.EXE" 5050 | -7/Scraptown | Learned abandonware demo "MELTYB.EXE" 5225 | -7/Scraptown | Visited DA-N13 Charitable Foundation 5241 | -7/Scraptown | Found DCF Scrap (29 items) 5323 | -7/Scraptown | Visited Chapter 10 5391 | -7/Scraptown | Visited LU-1G1's Boring Crew 5440 | -7/Scraptown | Visited Infowarlord's Domain 5449 | -7/Scraptown | Found Exp. Sensor Array 5506 | -7/Scraptown | Met Optimus 5506 | -7/Scraptown | Accepted into 0bPrime 5906 | -7/Scraptown | Civil war broke out across Scraptown 5917 | -7/Scraptown | Found Surveybot 24 Chip 5927 | -7/Scraptown | Found Prototype Reactor 5927 | -7/Scraptown | Identified MA-1KR's Cyclogen 6006 | -7/Scraptown | Core integrity fell below 20% 6119 | -7/Scraptown | Discovered new exit (range 5) 6125 | -7/Scraptown | Lost 23 allies 6131 | -7/Scraptown | Entered Factory 6131 | -5/Factory | Accompanied by 2 allies 6131 | -5/Factory | Evolved 10 slots: Power x1, Propulsion x4, Utility x5 6132 | -5/Factory | Identified exit to Factory 6524 | -5/Factory | Lost 3 parts (3u) 6540 | -5/Factory | Discovered exit to Factory (range 18) 6628 | -5/Factory | Fabricated Lrg. Storage Unit (x1) 6643 | -5/Factory | Spotted B-75 Beast 6842 | -5/Factory | Build established: Hacker-Sprinter 6979 | -5/Factory | System corruption reached 10% 7033 | -5/Factory | Core integrity fell below 50% 7062 | -5/Factory | Lost 16 parts (1p6n7u2w) 7081 | -5/Factory | Allied Derelicts emerged from ambush trap array 7090 | -5/Factory | Garrison activated, responded to threat 7178 | -5/Factory | Lost 3 allies 7200 | -5/Factory | Discovered exit to Factory (range 16) 7329 | -5/Factory | Cargo convoy interrupted 7434 | -5/Factory | Build established: Scavenger-Sprinter 7463 | -5/Factory | Crushed by falling debris 7506 | -5/Factory | Core integrity fell below 20% 7552 | -5/Factory | Destroyed by H-66 Slayer with Gauss Rifle Last Messages --------------- 07488_ System corrupted by crushing effect (+2). 07493_ ONEN:ICXRORZW OWEKWM8BQ 07498_ K-01 Serf cleans the Assembly Bed. 07503_ Assembly Bed disabled. 07506_ K-01 Serf cleans the Recycling Unit. 07506_ Lance destroyed. 07507_ Antigrav System destroyed. 07510_ K-01 Serf cleans the Recycling Unit. 07511_ System corrupted: Heat flow error (+194). 07514_ Door malfunctions. 07518_ Imp. Sensor Array destroyed. 07525_ M-28 Smith repairs P-70 Sage. 07526_ System corrupted: Energy discharge (-32). 07532_ VTOL Module destroyed. 07534_ Slammed into K-01 Serf. 07534_ Imp. Sensor Array destroyed. 07534_ System corrupted by crushing effect (+2). 07541_ System corrupted: Energy discharge (-32). 07544_ K-01 Serf cleans the Terminal. 07552_ Penetrated by Slug. Map ----- +----------------------------------------------------+ | ??# """ # #????????????????????????????????????? | | ??# """ # #????????????????????????????????????? | | ??# + #????????????????????????????????????? | | ??######### #???###??###???###???????????????????? | | ????????# #???#"####"#####"##??????????????????? | | ????### ##### "#??????????????????? | | ??# ##" ! ##??????????????????? | | # T ### #???????????????????? | | + "" #?# "" "" #???????????????????? | | # #?# "" "" #???????????????????? | | ??# #?# """ """ #???????????????????? | | ????##! ##?# """ """ " #???????????????????? | | ???????# #??# """ """ "" #???????????????????? | | ?????????# #??# G #???????????????????? | | ########## #??# "" #???????????????????? | | ! # #??# " #???????????????????? | | # #?## #???????????????????? | | ! # #######+#################???????????? | | + # #???????????? | | ""Y"" # # #???????????? | | ?? """"??# # """ #???????????? | | ####"#???################ # """" #???????????? | | ##"#####"##???????????# # """" #???????????? | | # ############# %+% """" #???????????? | | # """ "" +* h k # """" #???????????? | | # """ Y" # @! # """" #???????????? | | # """ "" # """"""""" # #???????????? | | # # ###"######???????????? | | # """ """ # """"""""" #?###????????????????? | | # """ """ # #????????????????????? | | # """ """ # #????????????????????? | | # # ###### ##????????????????????? | | + # #????# #?????????????????????? | | # | # ########+#######???????????????? | | # # # + #???????????????? | | ##########" + """ ##### #???????????????? | | R #?## # """ #???# #???????????????? | | #??# # """ #???# #???????????????? | | #??# # #???# #???????????????? | | #??# # """ #???# #???????????????? | | #??# # """ #???# #???????????????? | | #### #??# # """ ##########????????????? | | ??## ##?# # # #????????????? | | ??# #?# #######"## """#????????????? | | ??# ### #????##"## """#????????????? | | ??# ###### # """#????????????? | | ??# < + #????????????? | | ??# ###### # """#????????????? | | ??# ######+######## ## """#????????????? | | ??#! # ## ## """#????????????? | +----------------------------------------------------+ Best States ------------- Heat Dissipation 40 Energy Generation 29 Energy Capacity 2600 Matter Stores 300 Matter Capacity 550 Sight Range 21 Robot Scan Range 20 Terrain Scan Range 16 Terrain Scan Density 2010 Armor Coverage 150 Resistance: TH 10 Core Shielding 30 Point Defense Rating 80 Phase Shifting 5 Evasion (%) 68 Melee Accuracy 5 Recoil Reduction 3 Offensive Hacking 11 Defensive Hacking 10 Item Schematics ----------------- Lrg. Storage Unit | -7/Recycling | Hacked Fusion Compressor | -5/Factory | Scanalyzed Robot Schematics ------------------ None Fabricated ------------ Lrg. Storage Unit | x1 | -5/Factory Repaired ---------- Nothing Alien Tech Used ----------------- None Achievements -------------- None Challenges ------------ None Game ------ Seed HardcellContainmentSword Manual? 0 Play Time 01:51:31 Cumulative 88.5 hours Start 2025.06.04 @ 01:44:33 End 2025.06.04 @ 03:40:24 Sessions 1 Manual Loads 0 Difficulty Rogue Special Mode None Game No. 58 Rogue 58 Adventurer 0 Explorer 0 Win Type - Total 0 Types 0/0/0/0/0/0/0/0/0/0 Lore% 44 Gallery% 45 Achievement% 42 Wizard Run 0 Options --------- Layout 2 ASCII 0 Keyboard 0 Movement Numpad Keybinds 0 Fullscreen 0 Font 24/Proggy Map View 59x48 Zoom Use 0% Tactical HUD 1 Map Filters NONE Filters NONE Steam 1 RUN: d166bcf4-7628-4c3a-873e-f5b6bf0212da